Cogmind - Beta 13 @@@ ROGUE MODE // 2024.04.17 @ 08:34:20 Player: Terrible T Rex Result: Self-destructed Performance ------------- Evolutions (3) 1500 Regions Visited (7) 1400 Robots Destroyed (21) 105 Value Destroyed (769) 769 Prototype IDs (0) 0 Alien Tech Used (0) 0 Bonus (507) 507 TOTAL SCORE: 4281 Bonus ------- Follower Combat Kills 7 Entered DSFs 500 Cogmind --------- Core Integrity 598/700 Matter 450/450 Energy 100/100 System Corruption 0% Temperature Cool (0) Movement Core (450) Ox8 Location -7/DSF Parts ------- > --- POWER (2) -------- (None) > --- PROPULSION (5) --- (None) > --- UTILITY (4) ------ Large Matter Pod Medium Reactive Plating > --- WEAPON (2) ------- Scythe > --- INVENTORY (5) ---- (None) Peak State ------------ > --- POWER ------------ Improved Ion Engine Angular Momentum Engine > --- PROPULSION ------- Aluminum Leg Aluminum Leg Aluminum Leg Aluminum Leg Flexi-carbon Leg > --- UTILITY ---------- Large Matter Pod Improved Light Armor Plating Medium Reactive Plating Medium Reactive Plating > --- WEAPON ----------- Heavy Assault Rifle Scythe > --- INVENTORY -------- (None) [Rating: 33] Favorites ----------- Power Ion Engine Engine Ion Engine Propulsion Aluminum Leg Treads Light Treads Leg Aluminum Leg Flight Unit Flight Unit Utility Terrain Scanner Device Terrain Scanner Storage Small Storage Unit Processor Advanced Targeting Computer Hackware System Shield Protection Improved Light Armor Plating Weapon Assault Rifle Energy Gun Particle Gun Ballistic Gun Assault Rifle Special Weapon Mining Laser Slashing Weapon Scythe Build | -11 -10 -10 -10 -9 -8 -7 -7 ------- Run | Yrd Mat Min Exi Min Mat Fac DSF Slots Evolved 6 | . . . . . 4 2 . Power 1 | . . . . . 1 . . Propulsion 3 | . . . . . 3 . . Utility 2 | . . . . . . 2 . Weapon . | . . . . . . . . Parts Attached 41 | 6 1 . . 5 25 . 4 Power 5 | 1 . . . . 3 . 1 Engine 5 | 1 . . . . 3 . 1 Core . | . . . . . . . . Reactor . | . . . . . . . . Propulsion 17 | 2 . . . 2 12 . 1 Treads 4 | 2 . . . . 2 . . Leg 10 | . . . . . 9 . 1 Wheel . | . . . . . . . . Hover . | . . . . . . . . Flight 3 | . . . . 2 1 . . Utility 10 | 1 1 . . . 6 . 2 Device 3 | . 1 . . . 2 . . Storage 2 | 1 . . . . 1 . . Processor 1 | . . . . . 1 . . Hackware 1 | . . . . . 1 . . Protection 3 | . . . . . 1 . 2 Artifact . | . . . . . . . . Weapon 9 | 2 . . . 3 4 . . Energy Gun 2 | . . . . 1 1 . . Energy Cannon . | . . . . . . . . Ballistic Gun 4 | 2 . . . 1 1 . . Ballistic Cannon . | . . . . . . . . Launcher . | . . . . . . . . Special Weapon 1 | . . . . 1 . . . Impact Weapon . | . . . . . . . . Slashing Weapon 2 | . . . . . 2 . . Piercing Weapon . | . . . . . . . . Special Melee Weapon . | . . . . . . . . Unidentified Prototypes . | . . . . . . . . Parts Lost 23 | . . . . . 13 . 10 Power 4 | . . . . . 2 . 2 Propulsion 11 | . . . . . 6 . 5 Utility 4 | . . . . . 2 . 2 Weapon 4 | . . . . . 3 . 1 Highest Loss Streak 10 | . . . . . 5 . 10 To Critical Strikes 2 | . . . . . 1 . 1 Average Slot Usage (%) 84 | . 96 100 100 93 69 . 83 Engine 13 | . 14 14 14 14 12 . 13 Treads 8 | . 28 28 28 7 1 . . Leg 13 | . . . . . 24 . 33 Flight 8 | . . . . 20 4 . . Device 8 | . 10 14 14 14 4 . . Storage 7 | . 14 14 14 7 3 . 7 Protection 2 | . . . . . 2 . 13 Ballistic Gun 16 | . 28 28 28 25 7 . 5 Slashing Weapon 2 | . . . . . 4 . 7 Naked Turns 2 | . . . . . 2 . . Heaviest Build 71 | 14 15 15 15 15 28 18 71 Greatest Support 60 | 40 40 40 40 40 60 40 60 Greatest Overweight (x) 12 | . . . . 1 2 . 12 Average Overweight (x) . | . . . . . . . . Largest Inventory Capacity 8 | 8 8 8 8 8 5 5 5 Average Capacity 6 | 7 8 8 8 6 5 5 5 Most Carried 8 | 2 2 3 3 8 5 . 1 Average Carried 1 | . 1 2 3 2 . . . Final Capacity 8 | 8 8 8 8 5 5 5 5 Final Carried 3 | 1 2 3 3 1 . . . Class Distribution -------------------- 66% | Mutant 33% | Scavenger-Mutant Dominant Class ---------------- Mutant | -10/Materials Mutant | -10/Mines Mutant | -10/Exiles Mutant | -9/Mines Scavenger-Mutant | -8/Materials Scavenger-Mutant | -7/Factory Scavenger-Mutant | -7/DSF Resources | -11 -10 -10 -10 -9 -8 -7 -7 ----------- Run | Yrd Mat Min Exi Min Mat Fac DSF Matter Collected 903 | 187 . 113 . 158 445 . . Remotely . | . . . . . . . . Salvage Created 1000 | . . 113 . 48 768 . 71 Parts 58 | . . 8 . 7 38 . 5 Haulers Intercepted . | . . . . . . . . Recyclers Shooed . | . . . . . . . . Parts Field Recycled . | . . . . . . . . Retrieved Matter . | . . . . . . . . Parts Self-Destructed . | . . . . . . . . Prevented . | . . . . . . . . Kills | -11 -10 -10 -10 -9 -8 -7 -7 ------- Run | Yrd Mat Min Exi Min Mat Fac DSF Combat Hostiles Destroyed 18 | . . 2 . 3 12 . 1 Melee 9 | . . . . . 8 . 1 Guns 9 | . . 2 . 3 4 . . Classes Destroyed 9 | . . 2 . 1 5 . 1 Tunneler 1 | . . 1 . . . . . Recycler 1 | . . . . . 1 . . Watcher 1 | . . . . . 1 . . Swarmer 3 | . . . . 3 . . . Grunt 8 | . . 2 . . 6 . . Brawler 1 | . . . . . 1 . . Sentry 4 | . . . . . 4 . . Specialist 1 | . . . . . . . 1 Hunter 1 | . . . . . 1 . . Best Kill Streak 4 | . . 3 . 2 4 . 1 Combat Bots Only 4 | . . 2 . 2 4 . 1 Max Kills in Single Turn 1 | . . 1 . 1 1 . 1 Gunslinging . | . . . . . . . . Exploded . | . . . . . . . . Melee 1 | . . . . . 1 . 1 Uniques/NPCs Destroyed . | . . . . . . . . Combat | -11 -10 -10 -10 -9 -8 -7 -7 -------- Run | Yrd Mat Min Exi Min Mat Fac DSF Hostile Shots Fired 248 | . . 11 . 18 120 . 99 Missed 78 | . . 2 . 5 39 . 32 Damage Taken 2625 | . . 126 . 101 1256 . 1142 Core 359 | . . . . 7 250 . 102 Absorbed by Shields . | . . . . . . . . Ignored by Resistances 392 | . . . . . . . 392 Core Remaining (%) 83 | 100 . . . 97 54 . . Volleys Fired 49 | . . 7 . 11 30 . 1 Largest 2 | . . 2 . 1 2 . 1 Hottest 65 | . . 40 . 20 65 . 23 Shots Fired 63 | . . 14 . 11 37 . 1 Gun 63 | . . 14 . 11 37 . 1 Cannon . | . . . . . . . . Launcher . | . . . . . . . . Special . | . . . . . . . . Kinetic 46 | . . 14 . 11 20 . 1 Thermal 17 | . . . . . 17 . . Explosive . | . . . . . . . . Electromagnetic . | . . . . . . . . Robot Hit Streak 13 | . . 8 . 10 13 . 1 Robot Miss Streak 4 | . . 2 . 4 2 . . Penetration Max . | . . . . . . . . Secondary Targets 2 | . . 1 . . 1 . . Max Gunslinging Chain 1 | . . 1 . . 1 . . Shots Hit Robots 72 | . . 10 . 5 45 . 12 Core Hits 33 | . . 6 . 3 22 . 2 Critical Kills . | . . . . . . . . Critical Parts Destroyed . | . . . . . . . . Critical Strikes 3 | . . . . . 3 . . Burn 2 | . . . . . 2 . . Sever 1 | . . . . . 1 . . Melee Attacks 31 | . . . . . 17 . 14 Impact . | . . . . . . . . Slashing 31 | . . . . . 17 . 14 Piercing . | . . . . . . . . Sneak Attacks 2 | . . . . . 2 . . Combat Hostiles . | . . . . . . . . Follow-up Attacks . | . . . . . . . . Damage Inflicted 1339 | . . 130 . 60 946 . 203 Guns 622 | . . 130 . 60 416 . 16 Cannons . | . . . . . . . . Explosions . | . . . . . . . . Melee 717 | . . . . . 530 . 187 Ramming . | . . . . . . . . Kinetic 381 | . . 130 . 60 175 . 16 Thermal 241 | . . . . . 241 . . Explosive . | . . . . . . . . Electromagnetic . | . . . . . . . . Impact . | . . . . . . . . Slashing 717 | . . . . . 530 . 187 Piercing . | . . . . . . . . Highest Corruption 7 | . 4 4 4 4 7 . . Average Corruption 5 | . 3 4 4 4 6 . . Corruption Purged . | . . . . . . . . Corruption Blocked . | . . . . . . . . Effects 28 | . 1 2 2 8 15 . . Message Errors 6 | . . . . 2 4 . . Matter Fused 7 | . . 1 . 2 4 . . Heat Flow Errors 3 | . . . . 1 2 . . Energy Discharges 1 | . 1 . . . . . . Parts Rejected 1 | . . . . . 1 . . Parts Fused 1 | . . . . 1 . . . Data Loss (minor) 3 | . . 1 1 . 1 . . Data Loss (major) 1 | . . . 1 . . . . Misfires 2 | . . . . 1 1 . . Alerts 1 | . . . . . 1 . . Weapon Failures 2 | . . . . 1 1 . . Overload Shots . | . . . . . . . . Overflow Damage 56 | . . . . . 56 . . Projectiles . | . . . . . . . . Explosions . | . . . . . . . . Melee 56 | . . . . . 56 . . Knockbacks . | . . . . . . . . Impact . | . . . . . . . . Kinetic . | . . . . . . . . Secondary . | . . . . . . . . Self-Inflicted Damage . | . . . . . . . . Shots . | . . . . . . . . Rammed . | . . . . . . . . Targets Rammed . | . . . . . . . . Kicked . | . . . . . . . . Crushed . | . . . . . . . . Highest Temperature 183 | . . 20 . 183 138 . . Average Temperature 37 | . . 6 . 93 31 . . Received Heat Transfer 747 | . . 90 . . 495 . 162 Siege Activations . | . . . . . . . . Robots Corrupted . | . . . . . . . . Combat Hostiles . | . . . . . . . . Parts Fried . | . . . . . . . . Impact Corruptions . | . . . . . . . . Robots Melted . | . . . . . . . . Combat Hostiles . | . . . . . . . . Parts Melted 1 | . . . . . 1 . . Heat Transferred 740 | . . . . . 740 . . Parts Sabotaged . | . . . . . . . . Parts Stolen . | . . . . . . . . Parts Stripped . | . . . . . . . . Power Chain Reactions . | . . . . . . . . Alert | -11 -10 -10 -10 -9 -8 -7 -7 ------- Run | Yrd Mat Min Exi Min Mat Fac DSF Peak Influence 248 | . . 55 . 72 248 42 67 Initial 42 | . . . . . . 42 32 Average 61 | . . 32 . 54 94 42 53 Maximum Alert Level 1 | . . . . . 1 . . Low Security (%) 98 | 100 100 100 . 100 95 100 100 Level 1 1 | . . . . . 4 . . Level 2 . | . . . . . . . . Level 3 . | . . . . . . . . Level 4 . | . . . . . . . . Level 5 . | . . . . . . . . High Security . | . . . . . . . . Max Security . | . . . . . . . . Squads Dispatched 2 | . . . . . 1 . 1 Investigation 1 | . . . . . 1 . . Extermination . | . . . . . . . . Reinforcement 1 | . . . . . . . 1 Assault . | . . . . . . . . Garrison . | . . . . . . . . Intercept . | . . . . . . . . Searches Triggered . | . . . . . . . . Construction Impeded . | . . . . . . . . Haulers Reinforced . | . . . . . . . . Active Scanning Responses . | . . . . . . . . Cargo Convoy Interrupts . | . . . . . . . . Stealth | -11 -10 -10 -10 -9 -8 -7 -7 --------- Run | Yrd Mat Min Exi Min Mat Fac DSF Distress Signals 2 | . . . . . 2 . . Communications Jammed . | . . . . . . . . Distress Signals . | . . . . . . . . Times Spotted 32 | . . 2 . 4 17 . 9 Peak Tracking Total 7 | . . 2 . 4 5 . 7 Tactical Retreats 1 | . . . . . . . 1 Traps | -11 -10 -10 -10 -9 -8 -7 -7 ------- Run | Yrd Mat Min Exi Min Mat Fac DSF Traps Triggered 4 | . 3 . . . 1 . . Indirectly . | . . . . . . . . Trap Hack Attempts . | . . . . . . . . Triggered . | . . . . . . . . Disarmed . | . . . . . . . . Reprogrammed . | . . . . . . . . Reused . | . . . . . . . . Traps Extracted . | . . . . . . . . Installed . | . . . . . . . . Triggered . | . . . . . . . . Machines | -11 -10 -10 -10 -9 -8 -7 -7 ---------- Run | Yrd Mat Min Exi Min Mat Fac DSF Machines Disabled . | . . . . . . . . Max in Single Turn . | . . . . . . . . Machines Repaired . | . . . . . . . . Machines Dismantled . | . . . . . . . . Machines Sabotaged . | . . . . . . . . Overloaded Fab Kills . | . . . . . . . . Hacking | -11 -10 -10 -10 -9 -8 -7 -7 --------- Run | Yrd Mat Min Exi Min Mat Fac DSF Machines Accessed 3 | . . . . . 2 1 . Terminals 3 | . . . . . 2 1 . Fabricators . | . . . . . . . . Repair Stations . | . . . . . . . . Recycling Units . | . . . . . . . . Scanalyzers . | . . . . . . . . Garrison Access . | . . . . . . . . Total Hacks 8 | . . . . . 7 1 . Successful 4 | . . . . . 3 1 . Failed 3 | . . . . . 3 . . Catastrophic . | . . . . . . . . Database Lockouts 1 | . . . . . 1 . . Manual . | . . . . . . . . Terminals 8 | . . . . . 7 1 . Fabricators . | . . . . . . . . Repair Stations . | . . . . . . . . Recycling Units . | . . . . . . . . Scanalyzers . | . . . . . . . . Garrison Access . | . . . . . . . . Terminal Hacks 4 | . . . . . 3 1 . Record 2 | . . . . . 2 . . Open DSF 1 | . . . . . . 1 . Alert Level 1 | . . . . . 1 . . Fabricator Hacks . | . . . . . . . . Repair Station Hacks . | . . . . . . . . Recycling Unit Hacks . | . . . . . . . . Scanalyzer . | . . . . . . . . Garrison Access Hacks . | . . . . . . . . Unauthorized Hacks . | . . . . . . . . Terminals . | . . . . . . . . Fabricators . | . . . . . . . . Repair Stations . | . . . . . . . . Recycling Units . | . . . . . . . . Scanalyzers . | . . . . . . . . Garrison Access . | . . . . . . . . Data Cores Recovered . | . . . . . . . . Used . | . . . . . . . . Hacking Detections 3 | . . . . . 2 1 . Full Trace Events . | . . . . . . . . Feedback Events . | . . . . . . . . Feedback Blocked . | . . . . . . . . Robot Schematics Acquired . | . . . . . . . . Robots Built . | . . . . . . . . Authchips . | . . . . . . . . Time . | . . . . . . . . Total Robot Build Rating . | . . . . . . . . Part Schematics Acquired . | . . . . . . . . Parts Built . | . . . . . . . . Authchips . | . . . . . . . . Time . | . . . . . . . . Total Part Build Rating . | . . . . . . . . Parts Repaired . | . . . . . . . . Time . | . . . . . . . . Parts Recycled . | . . . . . . . . Recycled Matter . | . . . . . . . . Retrieved Matter . | . . . . . . . . Retrieved Components . | . . . . . . . . Parts Scanalyzed . | . . . . . . . . Part Schematics Acquired . | . . . . . . . . Parts Damaged . | . . . . . . . . Bothacking | -11 -10 -10 -10 -9 -8 -7 -7 ------------ Run | Yrd Mat Min Exi Min Mat Fac DSF Used RIF Installer . | . . . . . . . . Robots Hacked . | . . . . . . . . Non-combat . | . . . . . . . . Combat . | . . . . . . . . Robot Hacks Applied . | . . . . . . . . Relay Couplers Released . | . . . . . . . . Fabnet Peak Effective % . | . . . . . . . . Robots Rewired . | . . . . . . . . Allies Hacked . | . . . . . . . . Hacks Repelled . | . . . . . . . . Allies | -11 -10 -10 -10 -9 -8 -7 -7 -------- Run | Yrd Mat Min Exi Min Mat Fac DSF Total Allies 1 | . . . . 1 . . . Largest Group 1 | . . . . 1 . . . Highest-Rated Group 31 | . . . . 31 . . . Highest-Rated Ally 31 | . . . . 31 . . . Total Orders . | . . . . . . . . Ally Attacks 3 | . . . . 3 . . . Total Damage 61 | . . . . 61 . . . Kills 1 | . . . . 1 . . . Allies Corrupted . | . . . . . . . . Allies Melted . | . . . . . . . . Intel | -11 -10 -10 -10 -9 -8 -7 -7 ------- Run | Yrd Mat Min Exi Min Mat Fac DSF Robot Analysis Total . | . . . . . . . . Derelict Logs Recovered 1 | . . . . 1 . . . Drone Launches . | . . . . . . . . Drone Recoveries . | . . . . . . . . Exploration | -11 -10 -10 -10 -9 -8 -7 -7 ------------- Run | Yrd Mat Min Exi Min Mat Fac DSF Turns Passed 1392 | 56 90 112 50 435 502 3 144 Spaces Moved 932 | 32 55 57 32 319 367 3 67 Core 11 | 6 . . . . 4 . 1 Treads 239 | 26 55 57 32 56 13 . . Legs 241 | . . . . . 172 3 66 Wheels . | . . . . . . . . Hover . | . . . . . . . . Flight 441 | . . . . 263 178 . . Fastest Speed 34 | 50 160 160 160 117 34 120 120 Average Speed 116 | 139 160 160 160 124 85 120 146 Slowest Speed 650 | 160 160 160 160 160 260 120 650 Overloaded Moves . | . . . . . . . . Propulsion Burnouts . | . . . . . . . . Robots Hopped . | . . . . . . . . Cave-ins Triggered . | . . . . . . . . Exploration Rate (%) 30 | 4 15 15 8 69 34 . 70 Regions Visited 7 Branch Regions 3 Pre-discovered Areas . | . . . . . . . . Known Exits Taken 2 | . . . . . 1 1 . Unknown Exits Taken 5 | 1 1 1 1 1 . . . Scrap Searched 2 | . . . . 2 . . . Spaces Dug . | . . . . . . . . Terrain Destroyed . | . . . . . . . . Melee . | . . . . . . . . Projectile . | . . . . . . . . AOE . | . . . . . . . . Terrain Rammed . | . . . . . . . . Walls Destroyed . | . . . . . . . . Machines Disabled . | . . . . . . . . Actions | -11 -10 -10 -10 -9 -8 -7 -7 --------- Run | Yrd Mat Min Exi Min Mat Fac DSF Total 1128 | 44 57 64 31 347 493 2 90 Wait 30 | . . . . . 30 . . Move 925 | 31 54 56 31 318 366 2 67 Hop . | . . . . . . . . Pick Up 41 | 7 2 1 . 5 22 . 4 Fast Attach 1 | . . . . . 1 . . Attach 33 | 6 1 . . . 22 . 4 Detach . | . . . . . . . . Swap 7 | . . . . 5 2 . . Drop 11 | . . . . 8 3 . . Fire 49 | . . 7 . 11 30 . 1 Melee 31 | . . . . . 17 . 14 Ram . | . . . . . . . . Kick . | . . . . . . . . Crush . | . . . . . . . . Escape Stasis . | . . . . . . . . Rewire . | . . . . . . . . Trap . | . . . . . . . . Miscellaneous . | . . . . . . . . Route ------- -11/Scrapyard -10/Materials -10/Mines -10/Exiles -9/Mines -8/Materials -7/Factory -7/DSF History --------- Turn | Location | Event 30 | -11/Scrapyard | Discovered new exit (range 16) 57 | -11/Scrapyard | Entered Materials 129 | -10/Materials | Discovered new exit (range 11) 147 | -10/Materials | Entered Mines 238 | -10/Mines | Met a Derelict bent on vengeance 253 | -10/Mines | Deemed a non-threat by the Exiles lab entrance 253 | -10/Mines | Discovered new exit (range 5) 259 | -10/Mines | Entered Exiles 287 | -10/Exiles | Discovered new exit (range 15) 301 | -10/Exiles | Build established: Mutant 309 | -10/Exiles | Entered Mines 312 | -9/Mines | Received a Mining Laser from a helpful Derelict 735 | -9/Mines | Discovered new exit (range 5) 744 | -9/Mines | Entered Materials 744 | -8/Materials | Evolved 4 slots: Power x1, Propulsion x3 745 | -8/Materials | Identified exit to Factory 753 | -8/Materials | Central database locked down 835 | -8/Materials | Released all parts (3) 864 | -8/Materials | Lost 5 parts (2n1u2w) 1012 | -8/Materials | Lost 3 parts (1p1u1w) 1178 | -8/Materials | Lost 4 parts (4n) 1246 | -8/Materials | Entered Factory 1246 | -7/Factory | Evolved 2 slots: Utility x2 1249 | -7/Factory | Identified exit to DSF 1249 | -7/Factory | Entered DSF 1294 | -7/DSF | Additional patrols routed to DSF 1393 | -7/DSF | Self-destructed Last Messages --------------- 01341_ Knocked back. 01346_ Penetrated by Slug. 01346_ Knocked back. 01363_ Slug penetrates Wall. 01366_ Hvy. Assault Rifle destroyed. 01368_ C-30 ARC bursts open, deploying its payload. 01368_ S-27 Virus unfolds itself. 01368_ Knocked back. 01375_ Imp. Light Armor Plating destroyed. 01375_ Knocked back. 01378_ Aluminum Leg destroyed. 01380_ Flexi-carbon Leg destroyed. 01381_ Aluminum Leg destroyed. 01381_ Critical hit (Burn: +37). 01381_ Imp. Ion Engine destroyed. 01386_ Med. Reactive Plating destroyed. 01388_ G-47 Trooper destroyed. 01391_ Critical hit (Destroy). 01391_ Angular Momentum Engine destroyed. Map ----- +----------------------------------------------------+ | | | | | ?????????????????????????????????????????????????? | | ?????????????????????????????????????????????????? | | ?????????????????????????????????????????????????? | | ?????????????????????????????????????????????????? | | ?????????""??????????????????????????#""?????????? | | ?????????#"??????????????##??????????#"#?????????? | | ??????####"##???????#####"###???????##"####??????? | | ??????#"""""#########== #########"""""#??????? | | ??????#"""""## #]]]#==^^^ # #==##"""""#??????? | | ????"##"" ""##"????? | | ????""""" !! """""????? | | ??????#"" ##]]#]]]### ### #==##%! ""###????? | | ??????### ###]]#]]]### #;# #==### ###??????? | | ???????## ########## !!########?# #????????? | | ???????#] ]]#??????# !!#???????? =#???????? | | ???????#] ]]#??????# !!#???????? =#???????? | | ???????## ###??????### ;##???????## ##???????? | | ???????#] #??????#[[ !!#???????? =????????? | | ???????#] #???????[[ !!#???????? =????????? | | ???????#] #???????[[ !!#???????? =#???????? | | ??????### ############ ###????????# ##???????? | | ??????# ## #!!!### ##?????????# ????????? | | ??????# #; % %!!!##a a##!!!#!!!#? ????????? | | ????# "]] =% @ H !????????? | | ??????#]] % =% !????????? | | ?????#"]] g %% s !????????? | | ????# "!! ;# !;!!!;;a sa##!!!# ## ????????? | | ????###!! #;!!!;!!!;## ##??!!#???#? ????????? | | ??????### ##########?#s #????##????????????????? | | ???????? &??????????! s !!?????????????????????? | | ???????# &??????????! !!#????????????????????? | | ???????# &?????????!! !!#????????????????????? | | ???????## #?????????## ###????????????????????? | | ????????& ??????????? ??????????????????????? | | ????????& ??????????? ??????????????????????? | | ????????# ??????????? ?????????????????????? | | ????????? ???????????#% ##?????????????????????? | | ????????? ???????????# #??????????????????????? | | ????????? ???????????? ???????????????????????? | | ?????????????????????????????????????????????????? | | ?????????????????????????????????????????????????? | | ?????????????????????????????????????????????????? | | ?????????????????????????????????????????????????? | | ?????????????????????????????????????????????????? | | ?????????????????????????????????????????????????? | | ?????????????????????????????????????????????????? | | ?????????????????????????????????????????????????? | | ?????????????????????????????????????????????????? | +----------------------------------------------------+ Best States ------------- Heat Dissipation 45 Energy Generation 25 Energy Capacity 465 Matter Stores 450 Matter Capacity 450 Sight Range 16 Terrain Scan Range 16 Terrain Scan Density 10 Armor Coverage 600 Resistance: KI 30 Evasion (%) 63 Targeting Accuracy 8 Recoil Reduction 2 Defensive Hacking 10 Item Schematics ----------------- None Robot Schematics ------------------ None Fabricated ------------ Nothing Alien Tech Used ----------------- None Achievements -------------- Made in Tau Ceti IV Tourist Challenges ------------ None Game ------ Seed SniperNetworkTriangulator Manual? 0 Play Time 00:38:31 Cumulative 2.1 hours Start 2024.04.17 @ 07:57:23 End 2024.04.17 @ 08:34:20 Sessions 1 Manual Loads 0 Difficulty Rogue Special Mode None Game No. 6 Rogue 6 Adventurer 0 Explorer 0 Win Type - Total 0 Types 0/0/0/0/0/0/0/0/0 Lore% 0 Gallery% 5 Achievement% 1 Wizard Run 0 Options --------- Layout 1 ASCII 0 Keyboard 0 Movement Mouse Keybinds 0 Fullscreen 1 Font 24/Smallcaps Map View 50x35 Zoom Use 0% Tactical HUD 1 Map Filters NONE Filters NONE Steam 1 RUN: ee05369e-1cd2-4deb-9047-dc9dbc515ddd